bitfinex-derivatives/quotes_ETHF0:USTF0_20230402
["timestamp","ask_amount","ask_price","bid_price","bid_amount"]
[1680402047640,1.00565231,1811.2,1811.1,6.31173532]
[1680402047935,1.00565231,1811.2,1811.1,7.47011166]
[1680402050337,1.00565231,1811.2,1811.1,6.97011166]
[1680402052031,1.00565231,1811.2,1811.1,7.47011166]
[1680402054438,1.00565231,1811.2,1811.1,6.97011166]
[1680402054639,1.00565231,1811.2,1811.1,6.68060262]
[1680402054640,0.96928094,1811.2,1811.1,6.68060262]
[1680402054836,2.12043149,1811.2,1811.1,7.25985709]
[1680402055134,2.12043149,1811.2,1811.1,6.68060262]
[1680402055337,2.12043149,1811.2,1811.1,7.2598616]
[1680402055537,0.96928094,1811.2,1811.1,6.68060262]
[1680402055734,2.12043149,1811.2,1811.1,6.68060262]
[1680402055941,1.83284848,1811.2,1811.1,6.68060262]
[1680402056132,1.83285493,1811.2,1811.1,6.68060262]
[1680402056337,1.83285748,1811.2,1811.1,6.68060262]
[1680402065343,0.96928094,1811.2,1811.1,6.68060262]
[1680402065544,2.12043149,1811.2,1811.1,6.68060262]
[1680402068449,2.12043149,1811.2,1811.1,7.25988246]
[1680402068851,2.12043149,1811.2,1811.1,7.25984369]
[1680402069251,2.12043149,1811.2,1811.1,6.68060262]
[1680402072847,2.12043149,1811.2,1811.1,7.25981138]
[1680402073546,2.12043149,1811.2,1811.1,6.68060262]
[1680402073953,2.12043149,1811.2,1811.1,7.259814]
[1680402074154,2.12043149,1811.2,1811.1,6.68060262]
[1680402074553,2.12043149,1811.2,1811.1,7.25980156]
[1680402074851,2.12043149,1811.2,1811.1,7.2598024]
[1680402075051,2.12043149,1811.2,1811.1,6.68060262]
[1680402076949,0.96928094,1811.2,1811.1,6.68060262]
[1680402077550,2.12043149,1811.2,1811.1,6.68060262]
[1680402077747,2.12043149,1811.2,1811.1,7.25979151]
[1680402078055,0.96928094,1811.2,1811.1,7.18060262]
[1680402078354,1.83267281,1811.2,1811.1,7.18060262]
[1680402078553,1.832677,1811.2,1811.1,7.18060262]
[1680402078853,1.83267352,1811.2,1811.1,7.18060262]
[1680402079241,0.96928094,1811.2,1811.1,7.18060262]
[1680402079445,0.96928094,1811.2,1811.1,6.68060262]
[1680402081955,1.83268271,1811.2,1811.1,7.18060262]
[1680402084557,0.57562021,1811.3,1811.2,1.832]
[1680402084747,0.57562021,1811.4,1811.2,5.8668]
[1680402084960,0.57562021,1811.4,1811.3,1.98582121]
[1680402085156,0.8633965,1811.5,1811.4,0.5]
[1680402085349,0.8633965,1811.5,1811.4,4.57615649]
[1680402085550,0.8633965,1811.5,1811.4,4.74887859]
[1680402086359,0.8633965,1811.5,1811.4,5.32752497]
[1680402088362,1.6873965,1811.6,1811.4,4.45916848]
[1680402090061,1.6873965,1811.6,1811.4,3.95916848]
[1680402090557,0.82,1811.5,1811.4,3.95916848]
[1680402097064,0.827,1811.5,1811.4,3.95916848]
[1680402106976,0.825,1811.6,1811.4,3.95916848]
[1680402107779,0.825,1811.6,1811.5,0.5]
[1680402108183,0.825,1811.6,1811.5,6.71686738]
[1680402109281,0.825,1811.6,1811.5,6.21686738]
[1680402114877,0.825,1811.6,1811.5,6.71686738]
[1680402116091,0.825,1811.6,1811.5,6.21686738]
[1680402118094,0.825,1811.6,1811.5,6.71686738]
[1680402119093,0.825,1811.6,1811.5,6.21686738]
[1680402120592,0.825,1811.6,1811.5,6.79551376]
[1680402125500,0.8633965,1811.8,1811.5,8.40822387]
[1680402125800,0.8633965,1811.8,1811.7,3.78609602]
[1680402126002,0.8633965,1811.8,1811.7,4.28609602]
[1680402126293,0.8633965,1811.8,1811.7,10.0670201]
[1680402128299,0.8633965,1811.9,1811.7,10.0670201]
[1680402128501,0.8633965,1811.8,1811.7,10.0670201]
[1680402130600,0.8633965,1811.8,1811.7,9.5670201]
[1680402137003,0.821,1811.8,1811.7,9.5670201]
[1680402146995,0.8633965,1811.9,1811.7,9.5670201]
[1680402146996,1.6913965,1811.9,1811.7,9.5670201]
[1680402149006,1.6913965,1811.9,1811.8,0.57829602]
[1680402149306,1.6913965,1811.9,1811.8,0.5]
[1680402149498,1.6913965,1811.9,1811.8,6.4718558]
[1680402149694,1.6913965,1811.9,1811.8,5.9718558]
[1680402150502,1.6913965,1811.9,1811.8,6.55015182]
[1680402161810,1.6913965,1811.9,1811.8,6.5454198]
[1680402162414,1.6913965,1811.9,1811.8,7.41377629]
[1680402163508,1.6913965,1811.9,1811.8,6.83548027]
[1680402164107,1.6913965,1811.9,1811.8,7.41407189]
[1680402164410,1.6913965,1811.9,1811.8,6.83548027]
[1680402164607,0.8633965,1811.9,1811.8,7.33548027]
[1680402164805,0.8633965,1811.9,1811.8,6.83548027]
[1680402166214,0.8633965,1811.9,1811.8,7.33548027]
[1680402166606,0.8633965,1812.0,1811.8,7.33548027]
[1680402166805,0.8633965,1812.0,1811.9,4.2864842]
[1680402167305,0.8633965,1812.0,1811.9,10.08237854]
[1680402169110,0.8633965,1812.0,1811.9,9.58237854]
[1680402170314,1.15119533,1812.1,1811.9,9.58237854]
[1680402170815,1.15119533,1812.1,1812.0,0.5786842]
[1680402171022,1.15119533,1812.1,1812.0,0.62395721]
[1680402171230,1.97919533,1812.2,1812.0,7.18881038]
[1680402171517,1.97919533,1812.2,1812.1,3.2078]
[1680402171906,1.97919533,1812.2,1812.1,9.31499537]
[1680402175219,0.86332701,1812.2,1812.1,9.89367957]
[1680402177821,1.97819533,1812.4,1812.1,9.89367957]
[1680402177822,0.86332701,1812.3,1812.1,9.89367957]
[1680402178121,0.86332701,1812.3,1812.2,0.5]
[1680402178621,0.86332701,1812.3,1812.2,6.75135387]
[1680402179929,0.86332701,1812.3,1812.2,6.25135387]
[1680402180224,0.86332701,1812.3,1812.2,6.31612052]
[1680402181317,0.86332701,1812.3,1812.2,7.39480472]
[1680402181621,1.69032701,1812.4,1812.3,0.5]
[1680402181816,1.69032701,1812.4,1812.3,3.7078]
[1680402182013,1.69132701,1812.4,1812.3,9.00346798]
[1680402184723,0.828,1812.4,1812.3,9.00346798]
[1680402186725,1.69032701,1812.4,1812.3,9.00346798]
[1680402189331,0.827,1812.4,1812.3,9.00346798]
[1680402193429,1.97819533,1812.4,1812.3,9.00346798]
[1680402193627,0.827,1812.4,1812.3,9.00346798]
[1680402193831,1.97819533,1812.4,1812.3,9.00346798]
[1680402194131,0.827,1812.4,1812.3,9.00346798]
[1680402194722,1.97819533,1812.4,1812.3,9.00346798]
[1680402195134,1.97819533,1812.4,1812.3,9.09081933]
[1680402211449,0.827,1812.4,1812.3,9.09081933]
[1680402212544,2.26599416,1812.4,1812.3,9.09081933]
[1680402215345,2.95023533,1812.4,1812.3,5.88301933]
[1680402215546,2.26599416,1812.4,1812.3,5.88301933]
[1680402219656,2.95022325,1812.4,1812.3,5.88301933]
[1680402220357,2.26599416,1812.4,1812.3,5.88301933]
[1680402221254,2.95021653,1812.4,1812.3,5.88301933]
[1680402227159,2.26599416,1812.4,1812.3,5.88301933]
[1680402227558,2.9502142,1812.4,1812.3,5.88301933]
[1680402231758,2.9502142,1812.4,1812.3,5.87770275]
[1680402232556,2.9502142,1812.4,1812.3,6.45638695]
[1680402233458,1.43899416,1812.4,1812.3,11.03254344]
[1680402233657,1.15328457,1812.4,1812.3,10.45385924]
[1680402233858,1.15328457,1812.4,1812.3,9.58550275]
[1680402234458,0.86452021,1812.4,1812.3,10.45359502]
[1680402234961,0.86452021,1812.4,1812.3,9.95359502]
[1680402236965,0.86452021,1812.4,1812.3,10.77459502]
[1680402238969,0.86452021,1812.4,1812.3,11.35305055]
[1680402239368,0.86452021,1812.4,1812.3,10.77459502]
[1680402240670,0.86452021,1812.4,1812.3,11.35297085]
[1680402242771,0.86452021,1812.4,1812.3,9.66387858]
[1680402246170,0.86452021,1812.4,1812.3,6.45607858]
[1680402246875,0.86452021,1812.4,1812.3,9.66387858]
[1680402252481,1.97728457,1812.4,1812.3,5.87770275]
[1680402252682,2.47728457,1812.4,1812.3,5.87770275]
[1680402255379,1.97728457,1812.4,1812.3,5.87770275]
[1680402264381,0.824,1812.4,1812.3,6.45607858]
[1680402266591,1.97728457,1812.4,1812.3,6.45607858]
[1680402267084,1.97828457,1812.4,1812.3,6.45607858]
[1680402270798,1.97828457,1812.4,1812.3,9.66387858]
[1680402277006,1.98128457,1812.4,1812.3,9.66387858]
[1680402281203,1.69163389,1812.4,1812.3,10.53197085]
[1680402281407,1.69163389,1812.4,1812.3,9.95359502]
[1680402281609,0.828,1812.4,1812.3,9.95359502]
[1680402281810,1.69165448,1812.4,1812.3,9.95359502]
[1680402282011,0.828,1812.4,1812.3,10.53226549]
[1680402282207,0.828,1812.4,1812.3,10.53226937]
[1680402282508,0.828,1812.4,1812.3,9.95359502]
[1680402286413,1.98128457,1812.4,1812.3,9.95359502]
[1680402287521,0.828,1812.4,1812.3,9.95359502]
[1680402287711,0.86377275,1812.4,1812.3,9.08550275]
[1680402287904,0.86377275,1812.4,1812.3,10.24332396]
[1680402288309,1.43954904,1812.4,1812.3,9.08550275]
[1680402290113,0.57577629,1812.4,1812.3,9.08550275]
[1680402290817,0.57577629,1812.4,1812.3,10.24332396]
[1680402291314,0.57577629,1812.4,1812.3,9.08550275]
[1680402291510,0.57577629,1812.4,1812.3,10.24332396]
[1680402292314,0.57566433,1812.6,1812.4,0.575]
[1680402292525,1.43917309,1812.7,1812.5,6.02060464]
[1680402292711,1.43917309,1812.7,1812.6,1.328]
[1680402292712,0.57566433,1812.7,1812.6,1.328]
[1680402293112,1.43921715,1812.7,1812.6,8.29398362]
[1680402294118,0.57570839,1812.7,1812.6,8.87200373]
[1680402294520,0.57570839,1812.7,1812.6,8.29398362]
[1680402294815,0.57570839,1812.7,1812.6,8.87199925]
[1680402295220,0.57570839,1812.7,1812.6,8.37199925]
[1680402295519,0.57570839,1812.7,1812.6,7.50441201]
[1680402298226,0.57570839,1812.7,1812.6,6.92639638]
[1680402298728,0.57570839,1812.7,1812.6,7.50441201]
[1680402299029,0.57570839,1812.7,1812.6,6.92639638]
[1680402299925,0.57570839,1812.7,1812.6,7.10682838]
[1680402300126,0.57570839,1812.7,1812.6,8.18484401]
[1680402300326,0.57570839,1812.8,1812.6,8.18484401]
[1680402300521,1.43921715,1812.8,1812.7,3.7078]
[1680402300719,1.43921715,1812.8,1812.7,3.2078]
[1680402300919,1.43921715,1812.8,1812.7,9.02597184]
[1680402302531,0.57570839,1812.8,1812.7,9.02597184]
[1680402302727,1.43921715,1812.8,1812.7,9.02597184]
[1680402302922,0.57570839,1812.8,1812.7,9.02597184]
[1680402303932,0.86350876,1812.8,1812.7,9.02597184]
[1680402305330,1.43835562,1812.8,1812.7,9.02597184]
[1680402305531,0.57484686,1812.8,1812.7,9.02597184]
[1680402305731,1.43835562,1812.8,1812.7,9.02597184]
[1680402306231,1.43835562,1812.8,1812.7,9.2054222]
[1680402306434,0.57484686,1812.8,1812.7,9.2054222]
[1680402307228,0.57484686,1812.8,1812.7,5.9976222]
[1680402307425,1.43825732,1812.8,1812.7,5.9976222]
[1680402309826,0.57474856,1812.8,1812.7,9.2054222]
[1680402310630,0.86350876,1812.9,1812.7,9.2054222]
[1680402310631,1.43825732,1812.9,1812.7,9.2054222]
[1680402310831,1.43825732,1812.9,1812.8,0.828]
[1680402311030,1.43825732,1812.9,1812.8,1.50741835]
[1680402311233,0.57474856,1812.9,1812.8,7.81559819]
[1680402314930,0.57474856,1812.9,1812.8,7.31559819]
[1680402316035,0.57474856,1812.9,1812.8,7.81559819]
[1680402316541,1.43825732,1813.0,1812.8,7.81559819]
[1680402316742,1.43825732,1813.0,1812.9,3.2078]
[1680402316933,1.43825732,1813.0,1812.9,3.7078]
[1680402317136,1.43825732,1813.0,1812.9,8.96120326]
[1680402318128,0.86350876,1813.0,1812.9,8.96120326]
[1680402318940,1.43792172,1813.0,1812.9,8.96120326]
[1680402320139,0.86350876,1813.0,1812.9,8.96120326]
[1680402322034,0.86350876,1813.0,1812.9,9.14055147]
[1680402332137,1.15328457,1813.1,1812.9,9.14055147]
[1680402333547,1.15328457,1813.1,1812.9,5.93275147]
[1680402333548,1.15328457,1813.0,1812.9,5.93275147]
[1680402335242,2.48128457,1813.0,1812.9,0.17934821]
[1680402335451,3.58699416,1813.0,1812.9,0.17934821]
[1680402335639,3.58699416,1813.0,1812.7,3.2078]
[1680402335839,1.68995112,1812.8,1812.7,3.2078]
[1680402336149,1.68995112,1812.8,1812.7,3.78581563]
[1680402336646,1.68995112,1812.8,1812.6,0.86758724]
[1680402336647,0.827,1812.8,1812.6,0.57801563]
[1680402336843,1.97860149,1812.7,1812.5,0.57801563]
[1680402337045,1.69016486,1812.6,1812.5,0.57801563]
[1680402337247,2.19016486,1812.6,1812.5,0.57801563]
[1680402338253,1.327,1812.6,1812.5,0.57801563]
[1680402338545,6.51340149,1812.6,1812.5,0.57801563]
[1680402338739,0.5,1812.5,1812.3,0.57801563]
[1680402338940,2.26605208,1812.4,1812.3,0.57801563]
[1680402339146,1.69083125,1812.4,1812.3,0.57801563]
[1680402339547,1.69083125,1812.4,1812.3,6.86091542]
[1680402340249,2.26602438,1812.4,1812.3,6.86091542]
[1680402340852,1.40319313,1812.4,1812.3,6.28289979]
[1680402344751,0.828,1812.4,1812.3,6.28289979]
[1680402345148,1.40319313,1812.4,1812.3,6.28289979]
[1680402345349,0.828,1812.4,1812.3,6.28289979]
[1680402346944,0.827,1812.4,1812.3,6.28289979]
[1680402348949,0.827,1812.4,1812.2,5.92861698]
[1680402349252,0.827,1812.4,1812.2,6.42861698]
[1680402350351,1.40219313,1812.4,1812.2,5.92861698]
[1680402350749,0.827,1812.4,1812.2,5.92861698]
[1680402352055,0.827,1812.4,1812.3,0.08388468]
[1680402353459,0.827,1812.4,1812.3,5.92224001]
[1680402356054,1.39919313,1812.6,1812.4,0.5]
[1680402356454,1.39919313,1812.6,1812.5,6.25245493]
[1680402357157,0.57519313,1812.6,1812.5,6.25245493]
[1680402357357,2.25902438,1812.7,1812.5,6.25245493]
[1680402357555,1.39619313,1812.7,1812.5,6.25245493]
[1680402358857,0.57519313,1812.6,1812.5,9.46025493]
[1680402359053,0.57519313,1812.8,1812.6,0.828]
[1680402359253,0.57519313,1812.8,1812.7,0.5]
[1680402359453,0.57519313,1812.8,1812.7,5.90056825]
[1680402367072,0.57519313,1812.8,1812.7,6.03628936]
[1680402369271,0.57519313,1812.8,1812.7,6.0301056]
[1680402370773,0.57519313,1812.8,1812.7,6.8581056]
[1680402370973,0.57519313,1812.9,1812.7,10.0659056]
[1680402371374,0.57519313,1812.9,1812.7,6.8581056]
[1680402371575,0.57519313,1812.8,1812.7,6.8581056]
[1680402371780,1.43802438,1812.9,1812.7,6.8581056]
[1680402372076,1.43802438,1812.9,1812.7,6.0301056]
[1680402372678,0.57519313,1812.8,1812.7,6.0301056]
[1680402372885,0.86283125,1812.9,1812.7,6.0301056]
[1680402372886,1.43802438,1812.9,1812.7,6.0301056]
[1680402373384,0.57519313,1812.8,1812.7,6.0301056]
[1680402376075,1.43802438,1812.9,1812.7,6.0301056]
[1680402376275,0.57519313,1812.8,1812.7,6.0301056]
[1680402376987,0.57519313,1812.9,1812.7,6.0301056]
[1680402377188,1.43802438,1812.9,1812.7,6.0301056]
[1680402377988,0.57519313,1813.0,1812.8,1.656]
[1680402378291,1.43802438,1813.2,1812.9,11.44145773]
[1680402378490,1.43802438,1813.2,1813.1,0.821]
[1680402378884,0.57519313,1813.2,1813.1,0.821]
[1680402379084,1.43802438,1813.2,1813.1,0.821]
[1680402380086,0.86283125,1813.2,1813.1,0.821]
[1680402380583,0.86283125,1813.2,1813.1,6.67105701]
[1680402381189,1.43720266,1813.2,1813.1,6.67105701]
[1680402381388,0.57437141,1813.2,1813.1,6.67105701]
[1680402382187,0.57437141,1813.2,1813.1,6.87317295]
[1680402384089,0.57437141,1813.2,1813.1,6.05217295]
[1680402395207,1.68783125,1813.2,1813.1,6.05217295]
[1680402395510,2.18783125,1813.2,1813.1,0.20203157]
[1680402395902,2.18783125,1813.2,1812.8,0.5]
[1680402396101,1.40224678,1813.1,1812.8,0.5]
[1680402396305,1.90224678,1813.1,1812.8,0.5]
[1680402396605,1.40224678,1813.1,1812.9,6.25124765]
[1680402397006,0.82,1813.0,1812.9,6.25124765]
[1680402398605,1.39424678,1813.0,1812.9,6.25124765]
[1680402404715,3.58507803,1813.0,1812.9,6.25124765]
[1680402405016,2.148,1813.0,1812.7,0.57801563]
[1680402405214,1.39613274,1812.8,1812.7,0.57801563]
[1680402405717,1.39613274,1812.8,1812.7,6.96011966]
[1680402406417,0.821,1812.8,1812.7,6.96011966]
[1680402406622,1.39613274,1812.8,1812.7,6.96011966]
[1680402407113,0.821,1812.8,1812.7,6.96011966]
[1680402407318,1.39613274,1812.8,1812.7,6.96011966]
[1680402412220,1.39613274,1812.8,1812.7,7.11069418]
[1680402414713,1.68369912,1812.8,1812.7,6.53267855]
[1680402414918,1.68369912,1812.8,1812.7,7.11069418]
[1680402415216,1.68369912,1812.8,1812.7,6.53267855]
[1680402415624,1.68369912,1812.8,1812.7,7.11069418]
[1680402419324,2.2590459,1812.8,1812.7,7.11069418]
[1680402419828,1.68369912,1812.8,1812.7,7.11069418]
[1680402420228,2.25907589,1812.8,1812.7,7.11069418]
[1680402420525,1.68369912,1812.8,1812.7,7.11069418]
[1680402424831,2.25908832,1812.8,1812.7,7.11069418]
[1680402425130,2.25908946,1812.8,1812.7,7.11069418]
[1680402425331,1.68369912,1812.8,1812.7,7.11069418]
[1680402425528,2.2590879,1812.8,1812.7,7.11069418]
[1680402425727,1.39638878,1812.8,1812.7,10.31849418]
[1680402427038,0.57538878,1812.8,1812.7,10.31849418]
[1680402427335,0.57538878,1812.8,1812.7,7.97828142]
[1680402427535,0.57538878,1812.8,1812.7,10.31849418]
[1680402429236,1.4380879,1812.8,1812.7,10.31849418]
[1680402429829,0.57538878,1812.8,1812.7,10.31849418]
[1680402430029,1.4380879,1812.8,1812.7,10.31849418]
[1680402430432,0.57538878,1812.8,1812.7,10.31849418]
[1680402431232,1.4380879,1812.8,1812.7,10.31849418]
[1680402431630,0.57538878,1812.8,1812.7,11.18608142]
[1680402432032,0.57538878,1812.8,1812.7,10.31849418]
[1680402432231,1.4380879,1812.8,1812.7,11.18608142]
[1680402432432,0.57538878,1812.8,1812.7,11.18608142]
[1680402433032,0.57538878,1812.8,1812.7,11.18620102]
[1680402433330,1.4380879,1812.8,1812.7,11.18620102]
[1680402433535,0.86269912,1812.9,1812.7,11.43406579]
[1680402433831,0.86269912,1812.9,1812.8,1.07814104]
[1680402434234,0.86269912,1812.9,1812.8,1.22828369]
[1680402435137,0.86269912,1812.9,1812.8,6.99493051]
[1680402438043,0.86269912,1812.9,1812.8,7.28437671]
[1680402438535,0.86269912,1813.0,1812.8,7.28437671]
[1680402438732,0.86269912,1813.0,1812.9,3.78604546]
[1680402438930,1.1504405,1813.1,1812.9,3.78604546]
[1680402439136,1.1504405,1813.1,1812.9,9.98525429]
[1680402439643,1.1504405,1813.0,1812.9,9.98525429]
[1680402442245,1.1504405,1813.0,1812.9,10.13534623]
[1680402446749,0.86440534,1813.0,1812.9,11.25268801]
[1680402451052,0.86422634,1813.2,1813.0,0.5]
[1680402451355,1.1504405,1813.4,1813.0,0.5]
[1680402451356,0.86422634,1813.3,1813.2,0.824]
[1680402451547,0.86422634,1813.3,1813.2,2.73013477]
[1680402451748,0.86422634,1813.3,1813.2,3.07009277]
[1680402452150,0.86422634,1813.3,1813.2,2.57009277]
[1680402452349,0.86422634,1813.3,1813.2,3.07009277]
[1680402452852,0.86422634,1813.3,1813.2,2.57009277]
[1680402454049,0.86422634,1813.3,1813.2,1.74209277]
[1680402454252,1.36422634,1813.4,1813.2,1.163958]
[1680402454648,1.36422634,1813.3,1813.2,0.339958]
[1680402455355,0.86422634,1813.3,1813.2,0.339958]
[1680402455553,2.18922634,1813.4,1813.2,0.339958]
[1680402456959,2.19122634,1813.4,1813.2,0.339958]
[1680402457153,2.19122634,1813.4,1813.3,0.15416803]
[1680402459460,0.86422634,1813.4,1813.3,0.15416803]
[1680402461757,0.86422634,1813.4,1813.3,5.89511337]
[1680402462265,0.86422634,1813.5,1813.3,5.89511337]
[1680402462562,1.36422634,1813.5,1813.3,5.89511337]
[1680402462963,0.86422634,1813.4,1813.3,5.89511337]
[1680402463356,0.86422634,1813.5,1813.3,5.89511337]
[1680402467664,0.86422634,1813.5,1813.4,1.328]
[1680402467864,0.86422634,1813.5,1813.4,0.828]
[1680402468254,0.86422634,1813.5,1813.3,0.15416803]
[1680402468457,1.36422634,1813.5,1813.3,0.15416803]
[1680402468869,1.36422634,1813.5,1813.4,6.0918197]
[1680402469064,0.86422634,1813.5,1813.4,6.0918197]
[1680402472172,0.86422634,1813.5,1813.4,6.24589269]
[1680402472469,0.86422634,1813.5,1813.4,0.15407299]
[1680402472663,0.86422634,1813.5,1813.3,5.72615393]
[1680402472862,0.86422634,1813.5,1813.4,5.78155383]
[1680402473063,0.86422634,1813.5,1813.3,6.39686567]
[1680402474673,0.86422634,1813.5,1813.4,0.5]
[1680402475170,0.86422634,1813.5,1813.4,5.7041658]
[1680402475567,0.86422634,1813.5,1813.3,6.89105617]
[1680402475874,0.86422634,1813.5,1813.3,6.39105617]
[1680402476972,0.86422634,1813.5,1813.3,7.21905617]
[1680402480970,0.821,1813.4,1813.3,6.39105617]
[1680402481276,2.18522634,1813.4,1813.2,6.05890529]
[1680402481467,1.68522634,1813.4,1813.2,6.05890529]
[1680402484875,1.68522634,1813.4,1813.2,6.55890529]
[1680402485271,1.68522634,1813.4,1813.2,7.13704006]
[1680402485771,1.68522634,1813.4,1813.2,6.63704006]
[1680402487077,0.86422634,1813.4,1813.2,7.46304006]
[1680402487279,0.86422634,1813.4,1813.3,0.15397782]
[1680402487770,0.86422634,1813.4,1813.3,6.1518054]
[1680402489573,0.86422634,1813.4,1813.3,9.3596054]
[1680402490878,0.86422634,1813.4,1813.3,6.1518054]
[1680402491381,2.4744405,1813.5,1813.3,6.1518054]
[1680402491581,1.9744405,1813.5,1813.3,6.1518054]
[1680402492183,1.1504405,1813.4,1813.3,6.1518054]
[1680402493284,1.9744405,1813.5,1813.3,6.72994017]
[1680402493480,0.86457721,1813.4,1813.3,6.72994017]
[1680402493783,1.1504405,1813.4,1813.3,6.1518054]
[1680402494185,1.1504405,1813.4,1813.3,6.72994017]
[1680402496386,1.1504405,1813.4,1813.3,7.01901779]
[1680402497282,1.15395042,1813.4,1813.3,7.59765183]
[1680402497682,2.26599416,1813.5,1813.3,6.73043944]
[1680402499283,1.15396779,1813.4,1813.3,7.01901779]
[1680402499483,1.15396779,1813.4,1813.3,10.22681779]
[1680402504987,1.15397206,1813.4,1813.3,10.22681779]
[1680402512810,2.26399416,1813.5,1813.3,6.73043388]
[1680402513011,2.26399416,1813.5,1813.3,7.59764627]
[1680402513213,1.15378582,1813.4,1813.3,7.01901779]
[1680402513408,1.15378582,1813.4,1813.3,7.59763274]
[1680402513609,1.15378582,1813.4,1813.3,7.01901779]
[1680402514009,1.15378582,1813.4,1813.3,10.22681779]
[1680402516917,1.97878582,1813.5,1813.3,9.3596054]
[1680402517115,1.15378582,1813.5,1813.4,1.44645695]
[1680402517518,1.15378582,1813.5,1813.4,7.75968101]
[1680402518213,1.15378582,1813.5,1813.4,6.89180684]
[1680402518415,1.15378582,1813.5,1813.4,7.75968101]
[1680402519316,1.15378582,1813.5,1813.4,7.75296396]
[1680402519617,1.15378582,1813.5,1813.4,7.18109823]
[1680402520715,1.15378582,1813.5,1813.4,7.68109823]
[1680402521219,1.97778582,1813.6,1813.4,7.68109823]
[1680402521419,1.97778582,1813.6,1813.5,3.2078]
[1680402521617,1.97778582,1813.6,1813.5,3.7078]
[1680402521917,1.97778582,1813.6,1813.5,9.52783935]
[1680402522619,1.97778582,1813.6,1813.5,9.02783935]
[1680402525423,0.86523396,1813.6,1813.5,10.72371352]
[1680402528714,1.97478582,1813.8,1813.5,10.72371352]
[1680402528715,0.86523396,1813.7,1813.5,10.72371352]
[1680402531025,0.86523396,1813.7,1813.6,0.5]
[1680402531429,0.86523396,1813.7,1813.6,6.26577041]
[1680402532230,0.86523396,1813.7,1813.6,6.47092234]
[1680402534024,0.821,1813.8,1813.6,6.47092234]
[1680402534025,1.68623396,1813.8,1813.6,6.47092234]
[1680402534225,1.68623396,1813.8,1813.7,3.2078]
[1680402534624,1.68623396,1813.8,1813.7,9.05034699]
[1680402537228,0.86523396,1813.8,1813.7,9.05034699]
[1680402545531,1.68623396,1813.9,1813.7,9.05034699]
[1680402547335,1.68623396,1813.9,1813.8,0.20505777]
[1680402547637,1.68623396,1813.9,1813.8,6.09717474]
[1680402552937,1.68623396,1813.9,1813.8,6.59717474]
[1680402553140,2.01901978,1814.0,1813.8,6.92517474]
[1680402553336,0.86523396,1814.1,1813.9,3.7078]
[1680402553639,0.86523396,1814.1,1814.0,6.47150487]
[1680402554042,0.86523396,1814.1,1814.0,6.79950487]
[1680402556935,0.86523396,1814.1,1814.0,5.97150487]
[1680402560235,0.86384937,1814.3,1814.1,0.5]
[1680402560443,0.57589958,1814.4,1814.2,4.0348]
[1680402560635,0.57589958,1814.4,1814.3,0.828]
[1680402560942,0.57589958,1814.4,1814.3,6.81495523]
[1680402561143,0.57589958,1814.5,1814.3,6.81495523]
[1680402561340,1.43974895,1814.5,1814.3,6.81495523]
[1680402562140,0.57589958,1814.4,1814.3,6.81495523]
[1680402563141,0.57589958,1814.5,1814.3,6.81495523]
[1680402563742,1.43974895,1814.5,1814.3,6.81495523]
[1680402564049,0.57589958,1814.4,1814.3,6.81495523]
[1680402564350,1.43974895,1814.5,1814.3,6.81495523]
[1680402564646,0.57589958,1814.4,1814.3,6.81495523]
[1680402565042,0.57589958,1814.5,1814.3,6.81495523]
[1680402566242,0.57589958,1814.4,1814.3,5.98695523]
[1680402566544,1.90389958,1814.4,1814.0,3.2078]
[1680402566845,1.327,1814.3,1814.0,3.2078]
[1680402567040,1.90089958,1814.3,1814.0,4.0358]
[1680402567241,1.90089958,1814.3,1814.1,6.03203923]
[1680402567742,1.40089958,1814.3,1814.1,6.03203923]
[1680402572354,0.825,1814.3,1814.1,6.03203923]
[1680402572751,0.825,1814.3,1814.2,3.2078]
[1680402573342,1.40089958,1814.3,1814.2,3.2078]
[1680402573953,0.825,1814.3,1814.2,3.2078]
[1680402574759,0.825,1814.3,1814.2,9.1226969]
[1680402574949,1.40089958,1814.3,1814.2,9.1226969]
[1680402575149,0.825,1814.3,1814.2,9.1226969]
[1680402575951,1.40089958,1814.3,1814.2,9.1226969]
[1680402577253,0.57589958,1814.3,1814.2,9.36841215]
[1680402577456,2.26674895,1814.4,1814.2,9.36841215]
[1680402577958,0.57589958,1814.3,1814.2,9.36841215]
[1680402579747,2.26674895,1814.4,1814.2,9.36841215]
[1680402579943,0.57589958,1814.3,1814.2,9.36841215]
[1680402582861,0.57589958,1814.3,1814.2,6.16061215]
[1680402583058,1.652,1814.2,1813.7,0.86787417]
[1680402583360,1.40345949,1813.9,1813.5,0.821]
[1680402583655,0.5,1813.8,1813.5,0.821]
[1680402583863,0.5,1813.8,1813.6,3.2078]
[1680402584061,1.90345949,1813.9,1813.6,9.28637124]
[1680402584250,1.40345949,1813.9,1813.6,6.07857124]
[1680402584960,1.40345949,1813.9,1813.6,9.28637124]
[1680402590857,1.40345949,1813.9,1813.7,0.1616367]
[1680402595569,0.828,1813.8,1813.7,0.1616367]
[1680402597171,0.821,1813.8,1813.7,0.1616367]
[1680402600565,2.72045949,1813.8,1813.7,0.1616367]
[1680402604365,2.22045949,1813.8,1813.7,0.1616367]
[1680402606465,2.22045949,1813.8,1813.7,0.14435507]
[1680402606865,2.22045949,1813.8,1813.4,3.7078]
[1680402607069,0.828,1813.6,1813.4,3.7078]
[1680402607270,0.828,1813.6,1813.4,3.2078]
[1680402609473,0.828,1813.6,1813.4,3.7078]
[1680402610473,0.828,1813.6,1813.4,3.2078]
[1680402613176,1.39945949,1813.8,1813.4,5.39867417]
[1680402613372,1.39945949,1813.8,1813.5,0.5]
[1680402614074,1.39945949,1813.8,1813.6,0.14430833]
[1680402614676,1.89945949,1813.8,1813.6,0.14430833]
[1680402614875,1.39945949,1813.8,1813.4,4.89867417]
[1680402615270,1.89945949,1813.8,1813.4,4.89867417]
[1680402615470,1.39945949,1813.8,1813.4,4.89867417]
[1680402617074,0.827,1813.6,1813.4,4.07567417]
[1680402622379,0.827,1813.6,1813.4,3.2078]
[1680402623080,1.40245949,1813.6,1813.4,3.2078]
[1680402624480,1.40245949,1813.6,1813.4,4.07567417]
[1680402627088,0.824,1813.5,1813.4,4.07567417]
[1680402627284,0.824,1813.5,1813.4,3.2078]
[1680402628187,0.57545949,1813.6,1813.4,4.36408319]
[1680402628395,0.57545949,1813.6,1813.5,0.86668354]
[1680402628896,0.57545949,1813.6,1813.5,1.36668354]
[1680402629083,0.57545949,1813.6,1813.5,1.75473904]
[1680402630486,0.57545949,1813.6,1813.5,2.58073904]
[1680402630789,0.57545949,1813.6,1813.5,8.96030724]
[1680402631184,0.57545949,1813.6,1813.5,7.80402405]
[1680402631488,0.57545949,1813.7,1813.5,9.24275443]
[1680402631687,1.43864873,1813.7,1813.6,4.8641497]
[1680402632077,0.57545949,1813.7,1813.6,10.19896216]